bitfinex-derivatives/quotes_BTCF0:USTF0_20250716
["timestamp","ask_amount","ask_price","bid_price","bid_amount"]
[1752663068674,0.59695342,118960.0,118950.0,1.11635843]
[1752663071470,0.23615342,118960.0,118950.0,1.11635843]
[1752663071979,0.215,118960.0,118950.0,1.11635843]
[1752663073682,0.21,118960.0,118950.0,1.8411523]
[1752663074374,0.21,118960.0,118950.0,1.4803523]
[1752663075367,0.21,118960.0,118950.0,2.1388523]
[1752663075572,0.1658639,118960.0,118950.0,2.1388523]
[1752663075778,0.0920803,118960.0,118950.0,2.1388523]
[1752663075981,0.0673836,118960.0,118950.0,2.1388523]
[1752663076179,0.00471,118970.0,118960.0,0.1681]
[1752663076381,0.21471,118970.0,118960.0,0.89608774]
[1752663077173,0.21714,118970.0,118960.0,0.74362]
[1752663077378,0.57894,118970.0,118960.0,1.10761387]
[1752663079784,0.21814,118970.0,118960.0,1.10761387]
[1752663080383,0.57894,118970.0,118960.0,1.10761387]
[1752663080684,0.57894,118970.0,118960.0,0.74362]
[1752663080886,0.57894,118970.0,118960.0,1.10761387]
[1752663081383,0.57894,118970.0,118960.0,0.53209387]
[1752663081679,0.63893843,118970.0,118960.0,1.10845387]
[1752663082382,1.13893843,118970.0,118960.0,1.10845387]
[1752663086087,0.77813843,118970.0,118960.0,1.10845387]
[1752663086278,1.13893843,118970.0,118960.0,1.10845387]
[1752663086986,0.77813843,118970.0,118960.0,1.10845387]
[1752663087185,1.13893843,118970.0,118960.0,1.10845387]
[1752663087687,0.77813843,118970.0,118960.0,1.10845387]
[1752663087887,1.13893843,118970.0,118960.0,1.10845387]
[1752663088083,1.13893843,118970.0,118960.0,0.74446]
[1752663088286,1.13893843,118970.0,118960.0,1.10845387]
[1752663089887,1.07894,118970.0,118960.0,1.10845387]
[1752663090391,0.71814,118970.0,118960.0,1.10845387]
[1752663091288,1.07894,118970.0,118960.0,1.10845387]
[1752663091689,0.71814,118970.0,118960.0,1.10845387]
[1752663092686,0.71714,118970.0,118960.0,1.10845387]
[1752663093080,0.71714,118970.0,118960.0,1.47244774]
[1752663093284,0.71714,118970.0,118960.0,1.10845387]
[1752663095890,0.21714,118970.0,118960.0,1.10845387]
[1752663096091,0.57794,118970.0,118960.0,1.10845387]
[1752663096494,0.57794,118970.0,118960.0,0.74446]
[1752663096683,0.57794,118970.0,118960.0,1.10845387]
[1752663100693,0.21714,118970.0,118960.0,1.47244774]
[1752663101094,0.57794,118970.0,118960.0,1.47244774]
[1752663102195,0.57794,118970.0,118960.0,1.10845387]
[1752663102396,0.6381142,118970.0,118960.0,1.10845387]
[1752663102598,0.6381142,118970.0,118960.0,1.11045387]
[1752663103801,0.6381142,118970.0,118960.0,1.10845387]
[1752663104002,0.57794,118970.0,118960.0,1.10845387]
[1752663104204,0.6381142,118970.0,118960.0,1.10845387]
[1752663104499,0.57794,118970.0,118960.0,1.10845387]
[1752663104702,0.6381142,118970.0,118960.0,1.10845387]
[1752663104897,0.2773142,118970.0,118960.0,1.10845387]
[1752663105103,0.6381142,118970.0,118960.0,1.10845387]
[1752663106700,0.6381142,118970.0,118960.0,1.10825387]
[1752663106899,0.6381142,118970.0,118960.0,0.1681]
[1752663107103,0.6381142,118970.0,118960.0,0.7441]
[1752663107500,1.1381142,118970.0,118960.0,0.7441]
[1752663107896,1.07794,118970.0,118960.0,1.10809387]
[1752663110713,0.71714,118970.0,118960.0,1.10809387]
[1752663110905,1.07794,118970.0,118960.0,1.10809387]
[1752663111505,1.07794,118970.0,118960.0,0.7441]
[1752663111907,1.07794,118970.0,118960.0,1.10809387]
[1752663112408,1.07794,118970.0,118960.0,1.10869387]
[1752663113212,1.1381142,118970.0,118960.0,0.53209387]
[1752663113414,1.67019387,118970.0,118960.0,0.74462]
[1752663113609,0.1750699,118960.0,118950.0,0.2103284]
[1752663113810,1.07986377,118960.0,118950.0,0.2521556]
[1752663114010,1.07986377,118960.0,118950.0,0.8287156]
[1752663114817,1.65642377,118960.0,118950.0,0.2521556]
[1752663115118,2.15642377,118960.0,118950.0,0.2521556]
[1752663115617,2.15642377,118960.0,118950.0,0.2541556]
[1752663116219,1.86772588,118960.0,118950.0,0.2541556]
[1752663116617,2.15642377,118960.0,118950.0,0.2541556]
[1752663117219,1.7924299,118960.0,118950.0,0.2541556]
[1752663117820,2.15642377,118960.0,118950.0,0.2541556]
[1752663119017,2.21654433,118960.0,118950.0,0.2541556]
[1752663120722,1.85574433,118960.0,118950.0,0.2541556]
[1752663120923,2.57734433,118960.0,118950.0,0.2541556]
[1752663126330,2.57734433,118960.0,118950.0,0.2121284]
[1752663126524,2.51722377,118960.0,118950.0,0.2121284]
[1752663126726,2.59251975,118960.0,118950.0,0.2121284]
[1752663127930,2.51722377,118960.0,118950.0,0.2121284]
[1752663129034,2.592296,118960.0,118950.0,0.2121284]
[1752663135340,1.870696,118960.0,118950.0,0.2121284]
[1752663135638,2.592296,118960.0,118950.0,0.2121284]
[1752663139540,2.1532299,118960.0,118950.0,0.2121284]
[1752663139738,2.51722377,118960.0,118950.0,0.2121284]
[1752663140441,2.65240894,118960.0,118950.0,0.2121284]
[1752663140636,2.57733671,118960.0,118950.0,0.2121284]
[1752663142038,2.57733671,118960.0,118950.0,0.170103]
[1752663142343,0.175194,118950.0,118940.0,0.8289424]
[1752663142547,1.07998787,118950.0,118940.0,0.8287424]
[1752663143343,1.14010081,118950.0,118940.0,0.8287424]
[1752663144640,1.57998787,118950.0,118940.0,0.8313824]
[1752663145040,1.5883433,118950.0,118940.0,0.8313824]
[1752663145546,1.66341553,118950.0,118940.0,0.8313824]
[1752663148449,1.5883433,118950.0,118940.0,0.8313824]
[1752663149046,1.66361405,118950.0,118940.0,0.8313824]
[1752663149247,1.29962018,118950.0,118940.0,0.8313824]
[1752663149448,1.29126475,118950.0,118940.0,0.8313824]
[1752663149749,1.29126475,118950.0,118940.0,0.8337224]
[1752663150649,1.29126475,118950.0,118940.0,1.19771627]
[1752663150847,1.215994,118950.0,118940.0,1.19771627]
[1752663152942,1.215994,118950.0,118940.0,0.8337224]
[1752663153142,1.215994,118950.0,118940.0,1.19771627]
[1752663153548,1.27623077,118950.0,118940.0,1.19771627]
[1752663153749,1.215994,118950.0,118940.0,1.19771627]
[1752663155953,1.215994,118950.0,118940.0,0.8337224]
[1752663156152,1.215994,118950.0,118940.0,1.19771627]
[1752663157753,1.27623725,118950.0,118940.0,1.19771627]
[1752663160354,0.91543725,118950.0,118940.0,1.19771627]
[1752663160559,1.63703725,118950.0,118940.0,1.19771627]
[1752663161950,1.576794,118950.0,118940.0,1.19771627]
[1752663162658,1.576794,118950.0,118940.0,0.8337224]
[1752663162956,1.84984387,118950.0,118940.0,1.10677227]
[1752663165353,1.92511462,118950.0,118940.0,1.10677227]
[1752663167164,1.84984387,118950.0,118940.0,1.10677227]
[1752663171765,1.92511462,118950.0,118940.0,1.10677227]
[1752663171968,1.84984387,118950.0,118940.0,1.10677227]
[1752663172371,1.92511462,118950.0,118940.0,1.10677227]
[1752663172664,1.84984387,118950.0,118940.0,1.10677227]
[1752663173661,1.576794,118950.0,118940.0,1.10677227]
[1752663173861,1.84984387,118950.0,118940.0,1.10677227]
[1752663174161,1.84984387,118950.0,118940.0,1.10399227]
[1752663175064,1.576794,118950.0,118940.0,1.10399227]
[1752663175260,1.84984387,118950.0,118940.0,1.10399227]
[1752663176663,1.84984387,118950.0,118940.0,1.37704214]
[1752663176869,1.84984387,118950.0,118940.0,1.10399227]
[1752663178470,1.91009821,118950.0,118940.0,1.10399227]
[1752663178767,1.18849821,118950.0,118940.0,1.10399227]
[1752663178967,1.91009821,118950.0,118940.0,1.10399227]
[1752663181470,1.91009821,118950.0,118940.0,0.8332324]
[1752663181768,1.91009821,118950.0,118940.0,1.10628227]
[1752663183371,1.84984387,118950.0,118940.0,1.10628227]
[1752663183671,1.92511462,118950.0,118940.0,1.10628227]
[1752663184473,1.92511462,118950.0,118940.0,0.8332324]
[1752663184673,1.92511462,118950.0,118940.0,1.10628227]
[1752663186068,1.92511462,118950.0,118940.0,0.8332324]
[1752663186270,1.92511462,118950.0,118940.0,0.8309424]
[1752663187976,1.84984387,118950.0,118940.0,0.8309424]
[1752663188574,1.84954387,118950.0,118940.0,0.8309424]
[1752663188873,1.92481462,118950.0,118940.0,0.8309424]
[1752663190677,1.20321462,118950.0,118940.0,0.8309424]
[1752663190867,1.92481462,118950.0,118940.0,0.8309424]
[1752663192076,1.84954387,118950.0,118940.0,0.8309424]
[1752663192376,1.576494,118950.0,118940.0,0.8309424]
[1752663192570,1.84954387,118950.0,118940.0,1.10399227]
[1752663193275,1.84954387,118950.0,118940.0,0.52963227]
[1752663193574,1.84954387,118950.0,118940.0,1.10579227]
[1752663193769,1.576494,118950.0,118940.0,1.10579227]
[1752663194069,1.84954387,118950.0,118940.0,1.10579227]
[1752663197075,1.92481462,118950.0,118940.0,1.10579227]
[1752663197274,1.92481462,118950.0,118940.0,0.8327424]
[1752663197579,1.92481462,118950.0,118940.0,1.10579227]
[1752663199576,1.92481462,118950.0,118940.0,0.8327424]
[1752663202278,1.92481462,118950.0,118940.0,1.10579227]
[1752663202775,1.9098061,118950.0,118940.0,0.8327424]
[1752663202976,1.9098061,118950.0,118940.0,1.10579227]
[1752663204270,1.9098061,118950.0,118940.0,0.8327424]
[1752663205680,1.1882061,118950.0,118940.0,0.8327424]
[1752663205881,1.9098061,118950.0,118940.0,0.8327424]
[1752663206481,1.9098061,118950.0,118940.0,1.10579227]
[1752663206782,1.92481462,118950.0,118940.0,1.10579227]
[1752663208488,1.84954387,118950.0,118940.0,1.10579227]
[1752663208883,1.84954387,118950.0,118940.0,0.8327424]
[1752663209284,1.84954387,118950.0,118940.0,1.10579227]
[1752663210488,1.84954387,118950.0,118940.0,0.8327424]
[1752663210688,1.84954387,118950.0,118940.0,1.10579227]
[1752663211691,1.12794387,118950.0,118940.0,1.10579227]
[1752663211987,1.84954387,118950.0,118940.0,1.10579227]
[1752663214594,1.84954387,118950.0,118940.0,0.8327424]
[1752663214794,1.84954387,118950.0,118940.0,1.10579227]
[1752663215796,1.84954387,118950.0,118940.0,0.8327424]
[1752663215995,1.84954387,118950.0,118940.0,1.10579227]
[1752663216395,1.12794387,118950.0,118940.0,1.10579227]
[1752663216593,1.84954387,118950.0,118940.0,1.10579227]
[1752663218193,1.40838,118950.0,118940.0,1.37884214]
[1752663218398,1.40838,118950.0,118940.0,1.38114214]
[1752663219198,1.04758,118950.0,118940.0,1.38114214]
[1752663220196,1.0408,118950.0,118940.0,1.65419201]
[1752663220398,1.0408,118950.0,118940.0,1.38114214]
[1752663220595,1.04549,118950.0,118940.0,1.38114214]
[1752663220797,1.04549,118950.0,118940.0,1.10559227]
[1752663220798,1.31853987,118950.0,118940.0,1.10559227]
[1752663220997,1.48665377,118950.0,118940.0,1.10559227]
[1752663221199,1.84745377,118950.0,118940.0,1.10559227]
[1752663221401,1.67933987,118950.0,118940.0,1.10559227]
[1752663222004,1.84745377,118950.0,118940.0,1.10559227]
[1752663222895,1.5744039,118950.0,118940.0,0.8325424]
[1752663223100,1.40629,118950.0,118940.0,0.8325424]
[1752663224501,1.46652103,118950.0,118940.0,0.8325424]
[1752663225304,1.46652103,118950.0,118940.0,1.19659368]
[1752663226807,1.40629,118950.0,118940.0,1.19659368]
[1752663227909,1.46652103,118950.0,118940.0,1.19659368]
[1752663228708,1.46652103,118950.0,118940.0,1.19889368]
[1752663229309,1.40629,118950.0,118940.0,1.19889368]
[1752663229908,0.90629,118950.0,118940.0,1.19889368]
[1752663230103,0.18469,118950.0,118940.0,1.19889368]
[1752663230308,0.54549,118950.0,118940.0,1.19889368]
[1752663231709,0.5408,118950.0,118940.0,1.19889368]
[1752663232106,0.54549,118950.0,118940.0,1.19889368]
[1752663233514,0.54549,118950.0,118940.0,0.8348424]
[1752663233710,0.54549,118950.0,118940.0,1.19889368]
[1752663235116,0.60572103,118950.0,118940.0,1.19889368]
[1752663237218,0.60806103,118950.0,118940.0,1.19889368]
[1752663237517,0.60806103,118950.0,118940.0,0.62293368]
[1752663237815,0.60806103,118950.0,118940.0,1.20065368]
[1752663238014,1.14022621,118950.0,118940.0,0.2541824]
[1752663238217,1.50102621,118950.0,118940.0,0.8318624]
[1752663238407,2.00102621,118950.0,118940.0,0.2541824]
[1752663238607,2.00102621,118950.0,118940.0,0.8320224]
[1752663238917,1.94079518,118950.0,118940.0,0.8320224]
[1752663240612,1.40863,118950.0,118940.0,0.8320224]
[1752663242219,1.10797868,118950.0,118940.0,1.19836368]
[1752663242721,1.27609258,118950.0,118940.0,0.8343124]
[1752663242916,1.27609258,118950.0,118940.0,0.8320224]
[1752663244020,1.64014386,118950.0,118940.0,0.8320224]
[1752663244923,1.10797868,118950.0,118940.0,0.8320224]
[1752663245324,1.10797868,118950.0,118940.0,0.8343124]
[1752663245927,1.27609258,118950.0,118940.0,0.8343124]
[1752663248721,1.04783,118950.0,118940.0,1.19836368]
[1752663249123,1.2159439,118950.0,118940.0,1.19836368]
[1752663249523,1.2159439,118950.0,118940.0,0.8343124]
[1752663250327,1.2159439,118950.0,118940.0,1.19836368]
[1752663250623,1.2159439,118950.0,118940.0,0.8343124]
[1752663252127,1.2159839,118950.0,118940.0,0.8343124]
[1752663254830,1.58003518,118950.0,118940.0,0.8320224]
[1752663256125,1.2159839,118950.0,118940.0,0.8320224]
[1752663256729,1.58003518,118950.0,118940.0,0.8320224]
[1752663257526,1.2159839,118950.0,118940.0,0.8320224]
[1752663257728,1.58003518,118950.0,118940.0,0.8320224]
[1752663257928,1.64019664,118950.0,118940.0,0.8320224]
[1752663259431,0.0420355,118930.0,118910.0,0.042041]
[1752663259630,0.1754804,118910.0,118900.0,0.00528]
[1752663259833,0.1681939,118900.0,118870.0,0.0443552]
[1752663260136,0.1681939,118900.0,118880.0,0.2966202]
[1752663260137,0.36811,118890.0,118880.0,0.2966202]
[1752663260330,0.36811,118890.0,118880.0,0.8763802]
[1752663260331,0.56811,118890.0,118880.0,0.8763802]
[1752663260730,0.56811,118890.0,118880.0,0.2966202]
[1752663260942,0.56811,118890.0,118880.0,0.8763402]
[1752663261536,0.56911,118890.0,118880.0,0.8803402]
[1752663262141,0.56911,118890.0,118880.0,0.3006202]
[1752663262341,1.06911,118890.0,118880.0,0.8803002]
[1752663266940,1.2373087,118890.0,118880.0,0.8803002]
[1752663267247,1.2373087,118890.0,118880.0,0.1722129]
[1752663267248,1.60135998,118890.0,118880.0,0.1722129]
[1752663269041,2.24905076,118890.0,118880.0,0.1722129]
[1752663269546,1.88499948,118890.0,118880.0,0.1722129]
[1752663269750,2.24905076,118890.0,118880.0,0.1722129]
[1752663270351,1.88499948,118890.0,118880.0,0.1722129]
[1752663270647,2.24905076,118890.0,118880.0,0.1722129]
[1752663271149,1.66969076,118890.0,118880.0,0.1722129]
[1752663271350,2.25013076,118890.0,118880.0,0.1722129]
[1752663272749,2.25001076,118890.0,118880.0,0.1722129]
[1752663275852,2.26853208,118890.0,118880.0,0.1722129]
[1752663276952,2.64853208,118890.0,118880.0,0.1722129]
[1752663281053,2.64853208,118890.0,118880.0,0.1682129]
[1752663281247,2.64853208,118890.0,118880.0,0.15306666]
[1752663281855,2.64853208,118890.0,118880.0,0.12571489]
[1752663282154,2.7086571,118890.0,118880.0,0.09170928]
[1752663286355,2.72386258,118890.0,118880.0,0.09170928]
[1752663286855,2.3598113,118890.0,118880.0,0.09170928]
[1752663287062,2.72386258,118890.0,118880.0,0.09170928]
[1752663287657,2.34434258,118890.0,118880.0,0.09170928]
[1752663287963,2.42346668,118890.0,118870.0,0.168422]
[1752663288164,0.59614426,118880.0,118870.0,0.3389689]
[1752663288466,0.79614426,118880.0,118870.0,0.3387689]
[1752663289052,0.79614426,118880.0,118870.0,0.31962242]
[1752663289258,0.7361827,118880.0,118870.0,0.32262242]
[1752663289459,0.8115132,118880.0,118870.0,0.32262242]
[1752663289759,0.8115132,118880.0,118870.0,0.31962242]
[1752663289967,1.1733132,118880.0,118870.0,0.28051521]
[1752663290265,1.6733132,118880.0,118870.0,0.32257141]
[1752663290462,1.6723132,118880.0,118870.0,0.31857141]
[1752663290661,1.6833132,118880.0,118870.0,0.31957141]
[1752663290862,1.6633132,118880.0,118870.0,0.31957141]
[1752663291267,1.64811604,118880.0,118870.0,0.31957141]
[1752663292267,2.3762186,118880.0,118870.0,0.1692268]
[1752663292469,2.97233576,118880.0,118870.0,0.001]
[1752663292765,3.26700526,118880.0,118870.0,0.001]
[1752663292967,2.32203398,118880.0,118870.0,0.1692267]
[1752663293171,2.60804748,118880.0,118870.0,0.1692267]
[1752663293472,2.32203398,118880.0,118870.0,0.1692267]
[1752663293664,2.84615398,118880.0,118870.0,0.1692267]
[1752663293970,2.26503398,118880.0,118870.0,0.1692267]
[1752663294173,1.42277,118880.0,118870.0,0.53559798]
[1752663294371,1.49792085,118880.0,118870.0,0.53559798]
[1752663294874,1.49792085,118880.0,118870.0,0.1715467]
[1752663295064,1.30533345,118880.0,118870.0,0.1715467]
[1752663295267,1.13712085,118880.0,118870.0,0.1715467]
[1752663295471,1.30533345,118880.0,118870.0,0.1715467]
[1752663297977,1.2301826,118880.0,118870.0,0.1715467]
[1752663298276,1.1674327,118880.0,118870.0,0.1715467]
[1752663298967,1.06197,118880.0,118870.0,0.1715467]
[1752663299277,1.2301826,118880.0,118870.0,0.1715467]
[1752663299478,1.06197,118880.0,118870.0,0.1715467]
[1752663300377,1.2301826,118880.0,118870.0,0.1715467]
[1752663300572,0.70117,118880.0,118870.0,0.53789798]
[1752663300881,0.694,118880.0,118870.0,0.89869798]
[1752663301079,0.76917489,118880.0,118870.0,0.89869798]
[1752663301280,0.694,118880.0,118870.0,0.89869798]
[1752663301480,0.27404489,118880.0,118870.0,0.89869798]
[1752663301669,0.19887,118880.0,118870.0,0.89869798]
[1752663304585,0.25899689,118880.0,118870.0,0.89869798]
[1752663307978,0.19887,118880.0,118870.0,0.89869798]
[1752663308382,0.194,118880.0,118870.0,0.89869798]
[1752663308882,0.19865,118880.0,118870.0,0.89869798]
[1752663316790,0.19865,118880.0,118870.0,0.53789798]
[1752663317392,0.19865,118880.0,118870.0,1.11721798]
[1752663317591,0.20103,118880.0,118870.0,1.11721798]
[1752663318295,0.20103,118880.0,118870.0,0.53789798]
[1752663318490,0.20103,118880.0,118870.0,1.11725798]
[1752663318686,0.20103,118880.0,118870.0,0.53789798]
[1752663318992,0.20103,118880.0,118870.0,0.7508267]
[1752663319189,0.20103,118880.0,118870.0,1.11487798]
[1752663320596,0.56183,118880.0,118870.0,0.7507867]
[1752663321686,0.56183,118880.0,118870.0,1.11483798]
[1752663322395,0.20103,118880.0,118870.0,1.11483798]
[1752663322688,0.20103,118880.0,118870.0,0.7507867]
[1752663322889,0.20103,118880.0,118870.0,1.11455798]
[1752663323101,0.56183,118880.0,118870.0,1.11455798]
[1752663323296,0.56183,118880.0,118870.0,0.7505067]
[1752663325293,0.56183,118880.0,118870.0,1.11455798]
[1752663325594,1.09409398,118880.0,118870.0,0.1692267]
[1752663325795,1.15422087,118880.0,118870.0,0.7479867]
[1752663326598,1.65422087,118880.0,118870.0,0.7479867]
[1752663327799,1.59409398,118880.0,118870.0,0.7479867]
[1752663328193,1.2300427,118880.0,118870.0,0.7479867]
[1752663328394,1.59409398,118880.0,118870.0,0.7479867]
[1752663328696,1.65422087,118880.0,118870.0,0.7479867]
[1752663329095,1.29016959,118880.0,118870.0,0.7479867]
[1752663329295,1.65422087,118880.0,118870.0,0.7479867]
[1752663333901,1.29016959,118880.0,118870.0,0.7479867]
[1752663334103,1.59409398,118880.0,118870.0,0.7479867]
[1752663336196,1.59409398,118880.0,118870.0,0.7488267]
[1752663336903,0.1728168,118870.0,118860.0,0.0002]
[1752663337105,1.21429437,118870.0,118860.0,0.168236]
[1752663338198,1.71429437,118870.0,118860.0,0.168236]
[1752663338703,2.29385437,118870.0,118860.0,0.168236]
[1752663339298,2.29585437,118870.0,118860.0,0.169236]
[1752663340705,2.23572748,118870.0,118860.0,0.169236]
[1752663341105,2.29585437,118870.0,118860.0,0.169236]
[1752663341300,2.23572748,118870.0,118860.0,0.169236]
[1752663343607,2.23572748,118870.0,118860.0,0.001]
[1752663344008,2.29585437,118870.0,118860.0,0.001]
[1752663344207,2.29585437,118870.0,118860.0,0.1692409]
[1752663344608,2.29585437,118870.0,118860.0,0.001]
[1752663344808,2.23572748,118870.0,118860.0,0.001]
[1752663345309,2.29577211,118870.0,118860.0,0.001]
[1752663346007,2.29577211,118870.0,118860.0,0.1692409]
[1752663346416,2.29541211,118870.0,118860.0,0.1692409]
[1752663346802,2.23536748,118870.0,118860.0,0.1692409]
[1752663347305,2.23536748,118870.0,118860.0,0.001]
[1752663348108,2.31054237,118870.0,118860.0,0.001]
[1752663348309,0.1706209,118860.0,118850.0,0.8171744]
[1752663348503,1.16010299,118860.0,118850.0,0.8171744]
[1752663349007,1.168704,118860.0,118850.0,0.8171744]
[1752663350211,1.670704,118860.0,118850.0,0.8181744]
[1752663350511,1.73652562,118860.0,118850.0,0.8181744]
[1752663351609,1.67648481,118860.0,118850.0,0.8181744]
[1752663352812,1.7516597,118860.0,118850.0,0.8181744]
[1752663358023,1.73655056,118860.0,118850.0,0.8181744]
[1752663360119,1.67648481,118860.0,118850.0,0.8204744]
[1752663360325,1.13559162,118860.0,118850.0,0.8204744]
[1752663360524,1.30383252,118860.0,118850.0,0.8227744]
[1752663360927,1.57727063,118860.0,118850.0,1.09621251]
[1752663361127,1.57727063,118860.0,118850.0,1.09391251]
[1752663361327,1.40902973,118860.0,118850.0,1.09391251]
[1752663361528,1.57727063,118860.0,118850.0,1.09391251]
[1752663362826,1.57727063,118860.0,118850.0,0.8204744]
[1752663363028,1.30383252,118860.0,118850.0,0.8204744]
[1752663364321,1.13559162,118860.0,118850.0,0.8204744]
[1752663366424,0.70659,118860.0,118850.0,1.54682897]
[1752663366929,0.202,118860.0,118850.0,1.54682897]
[1752663373025,0.202,118860.0,118850.0,0.6040944]
[1752663373230,0.20691,118860.0,118850.0,1.18566897]
[1752663376922,0.20691,118860.0,118850.0,0.2432944]
[1752663377127,0.20691,118860.0,118850.0,1.18662897]
[1752663377732,0.20935,118860.0,118850.0,1.18662897]
[1752663380430,0.20935,118860.0,118850.0,0.8220544]
[1752663380631,0.20939,118860.0,118850.0,1.18662897]
[1752663381032,0.20939,118860.0,118850.0,1.18646897]
[1752663382635,0.20939,118860.0,118850.0,0.8218944]
[1752663382836,0.20939,118860.0,118850.0,1.18646897]
[1752663383034,0.20939,118860.0,118850.0,1.18396897]
[1752663383236,0.57396457,118860.0,118850.0,0.2409944]
[1752663383530,0.99490249,118860.0,118850.0,0.8169344]
[1752663383743,0.93476457,118860.0,118850.0,0.8169344]
[1752663383931,1.49490249,118860.0,118850.0,0.8169344]
[1752663384639,1.49490249,118860.0,118850.0,0.2386944]
[1752663384834,1.49490249,118860.0,118850.0,0.8167744]
[1752663388056,1.66314329,118860.0,118850.0,0.8166544]
[1752663388935,1.49490249,118860.0,118850.0,0.8166544]
[1752663389342,1.13032792,118860.0,118850.0,0.8166544]
[1752663389543,1.49490249,118860.0,118850.0,0.8166544]
[1752663390938,1.66314339,118860.0,118850.0,0.001]
[1752663391141,0.1706951,118850.0,118840.0,0.2946586]
[1752663391339,1.12959566,118850.0,118840.0,0.2944586]
[1752663391937,1.19852491,118850.0,118840.0,0.2944586]
[1752663392644,1.53126981,118850.0,118840.0,0.2964586]
[1752663392944,1.16669524,118850.0,118840.0,0.2964586]
[1752663393241,1.22682066,118850.0,118840.0,0.2988086]
[1752663394443,1.22682066,118850.0,118840.0,0.2978086]
[1752663398047,1.16669524,118850.0,118840.0,0.2978086]
[1752663400750,0.80589524,118850.0,118840.0,0.2978086]
[1752663401249,1.16669524,118850.0,118840.0,0.2978086]
[1752663401948,2.33725023,118850.0,118840.0,0.1692691]
[1752663402546,2.27712481,118850.0,118840.0,0.1692691]
[1752663402737,1.69952481,118850.0,118840.0,0.1692691]
[1752663402943,2.27712481,118850.0,118840.0,0.1692691]
[1752663403744,2.44541281,118850.0,118840.0,0.1692691]
[1752663403952,1.91255024,118850.0,118840.0,0.1692691]
[1752663404249,2.27712481,118850.0,118840.0,0.1692691]
[1752663405251,1.69952481,118850.0,118840.0,0.1692691]
[1752663405549,2.28537434,118850.0,118840.0,0.1692691]
[1752663408655,2.36054674,118850.0,118840.0,0.1692691]
[1752663410353,1.99597217,118850.0,118840.0,0.1692691]
[1752663410554,2.52883474,118850.0,118840.0,0.1692691]
[1752663411549,2.36054674,118850.0,118840.0,0.1692691]
[1752663416963,2.72134674,118850.0,118840.0,0.1692691]
[1752663424468,2.64617434,118850.0,118840.0,0.1692691]
[1752663429682,2.06853434,118850.0,118840.0,0.1692691]
[1752663429976,2.64617434,118850.0,118840.0,0.1692691]
[1752663431382,2.70627684,118850.0,118840.0,0.1692691]
[1752663433081,2.88879899,118850.0,118840.0,0.1692691]
[1752663437083,2.03761063,118850.0,118840.0,0.1692691]
[1752663437385,2.61521063,118850.0,118840.0,0.1692691]
[1752663437772,2.03761063,118850.0,118840.0,0.1692691]
[1752663437976,2.55510813,118850.0,118840.0,0.1692691]
[1752663438175,2.05268053,118850.0,118840.0,0.1692691]
[1752663438372,2.66034949,118850.0,118840.0,0.1692691]
[1752663438978,1.36114949,118850.0,118840.0,0.1692691]
[1752663439179,2.66034949,118850.0,118840.0,0.1692691]
[1752663439381,2.55510813,118850.0,118840.0,0.1692691]
[1752663440582,2.82865649,118850.0,118840.0,0.1692691]
[1752663441085,2.55510813,118850.0,118840.0,0.1692691]
[1752663442484,2.66034949,118850.0,118840.0,0.1692691]
[1752663442686,2.93389785,118850.0,118840.0,0.1692691]
[1752663444586,2.35629785,118850.0,118840.0,0.1692691]
[1752663444785,2.93385785,118850.0,118840.0,0.1692691]
[1752663446088,2.90381048,118850.0,118840.0,0.1692691]
[1752663447384,2.35671376,118850.0,118840.0,0.1692691]
[1752663447582,2.90381048,118850.0,118840.0,0.1692691]
[1752663450092,2.92381048,118850.0,118840.0,0.1692691]
[1752663450391,2.84861649,118850.0,118840.0,0.1692691]
[1752663453193,2.92381048,118850.0,118840.0,0.1692691]
[1752663453592,2.65022212,118850.0,118840.0,0.1692691]
[1752663458098,2.92377048,118850.0,118840.0,0.1692691]
[1752663458392,2.20217048,118850.0,118840.0,0.1692691]
[1752663458593,2.56297048,118850.0,118840.0,0.1692691]
[1752663458994,2.48777649,118850.0,118840.0,0.1692691]
[1752663462997,2.59301785,118850.0,118840.0,0.1692691]
[1752663464697,2.59301785,118850.0,118840.0,0.001]
[1752663465197,2.31946949,118850.0,118840.0,0.001]
[1752663465398,2.21422813,118850.0,118840.0,0.001]
[1752663465597,2.21422813,118850.0,118840.0,0.1692692]
[1752663465798,2.56290989,118850.0,118840.0,0.001]
[1752663465987,0.1754292,118840.0,118830.0,0.0002]
[1752663466191,0.1754292,118840.0,118830.0,0.1682834]
[1752663466192,2.10431428,118840.0,118830.0,0.1682834]
[1752663466393,0.1706334,118830.0,118820.0,0.29651322]
[1752663466698,1.09857597,118830.0,118820.0,0.29631322]
[1752663466996,1.09857597,118830.0,118820.0,0.32578525]
[1752663467290,1.09857597,118830.0,118820.0,0.34270225]
[1752663467895,1.09957597,118830.0,118820.0,0.34370225]
[1752663468697,1.09957597,118830.0,118820.0,0.30162835]
[1752663468896,1.59957597,118830.0,118820.0,0.30162835]
[1752663471791,1.32602761,118830.0,118820.0,0.30162835]
[1752663472192,1.59957597,118830.0,118820.0,0.30162835]
[1752663472597,1.5394791,118830.0,118820.0,0.30162835]
[1752663474794,1.87312433,118830.0,118820.0,0.04919535]
[1752663475000,1.87312433,118830.0,118820.0,0.21749295]
[1752663475297,1.88816086,118830.0,118820.0,0.21749295]
[1752663476694,1.94818244,118830.0,118820.0,0.21749295]
[1752663476896,1.87304904,118830.0,118820.0,0.21749295]
[1752663477700,1.81302746,118830.0,118820.0,0.21749295]
[1752663478100,1.87304904,118830.0,118820.0,0.21749295]
[1752663480705,1.32595232,118830.0,118820.0,0.21749295]
[1752663480898,1.87304904,118830.0,118820.0,0.21749295]
[1752663484100,1.81302746,118830.0,118820.0,0.21749295]
[1752663484406,1.5394791,118830.0,118820.0,0.21749295]
[1752663484606,2.1168791,118830.0,118820.0,0.21749295]
[1752663485407,2.1920125,118830.0,118820.0,0.21749295]
[1752663486910,2.46556086,118830.0,118820.0,0.21749295]
[1752663487110,2.45039258,118830.0,118820.0,0.21749295]
[1752663487408,1.90329586,118830.0,118820.0,0.21749295]
[1752663487604,2.45039258,118830.0,118820.0,0.21749295]
[1752663489906,1.32589586,118830.0,118820.0,0.21749295]
[1752663490113,2.45039258,118830.0,118820.0,0.21749295]
[1752663493811,2.39042746,118830.0,118820.0,0.21749295]
[1752663494015,2.46556086,118830.0,118820.0,0.21749295]
[1752663495310,1.88816086,118830.0,118820.0,0.21749295]
[1752663495515,2.46580086,118830.0,118820.0,0.21749295]
[1752663495917,2.39066746,118830.0,118820.0,0.21749295]
[1752663496314,2.1170391,118830.0,118820.0,0.21749295]
[1752663497711,1.5394791,118830.0,118820.0,0.21749295]
[1752663497916,2.1169991,118830.0,118820.0,0.21749295]
[1752663498403,2.1921325,118830.0,118820.0,0.21749295]
[1752663498610,2.1951325,118830.0,118820.0,0.21749295]
[1752663499114,2.46868086,118830.0,118820.0,0.21749295]
[1752663500616,1.89116086,118830.0,118820.0,0.21749295]